bitfinex/quotes_SOLUSD_20240822
["timestamp","ask_amount","ask_price","bid_price","bid_amount"]
[1724352520621,14.79952384,143.72,143.63,20.0]
[1724352520807,1.73976072,143.71,143.64,31.66493461]
[1724352521000,8.69826072,143.71,143.65,4.01487401]
[1724352521200,8.69826072,143.71,143.64,20.0]
[1724352521398,8.69826072,143.71,143.65,4.01524962]
[1724352521998,8.69826072,143.71,143.66,45.25098]
[1724352522292,8.69826072,143.71,143.67,45.0]
[1724352522497,8.69826072,143.71,143.66,0.25098]
[1724352522705,6.9585,143.71,143.66,20.25098]
[1724352522925,6.9585,143.71,143.67,45.0]
[1724352523725,13.06,143.7,143.67,45.0]
[1724352525707,20.019,143.7,143.66,20.0]
[1724352526022,13.06,143.7,143.64,20.0]
[1724352527203,13.06,143.7,143.65,45.0]
[1724352527403,13.06,143.7,143.66,20.0]
[1724352527931,26.0705,143.72,143.66,20.0]
[1724352528135,26.0705,143.72,143.67,45.0]
[1724352529528,6.9584,143.71,143.66,20.0]
[1724352529732,6.9584,143.71,143.64,20.0]
[1724352530027,6.9584,143.71,143.65,45.0]
[1724352530433,13.0104,143.72,143.65,45.0]
[1724352530605,13.06,143.71,143.65,45.0]
[1724352530806,20.0184,143.71,143.65,45.0]
[1724352537461,35.9488,143.71,143.65,45.0]
[1724352542068,15.9304,143.71,143.65,58.06]
[1724352542271,15.9304,143.71,143.66,0.12549]
[1724352543546,15.9304,143.71,143.66,0.25098]
[1724352543775,15.9304,143.71,143.66,7.89926149]
[1724352544074,15.9304,143.71,143.67,45.0]
[1724352544269,15.9304,143.71,143.68,0.12549]
[1724352551172,28.9904,143.71,143.67,45.0]
[1724352553070,15.9304,143.71,143.67,45.0]
[1724352553264,13.06,143.7,143.67,45.0]
[1724352560191,15.9304,143.71,143.67,45.0]
[1724352562173,13.06,143.7,143.66,0.12549]
[1724352562379,13.06,143.7,143.67,11.66304919]
[1724352562701,13.06,143.7,143.66,6.46820454]
[1724352562878,13.06,143.7,143.67,11.66301841]
[1724352563078,13.06,143.7,143.66,6.46820454]
[1724352563387,13.06,143.7,143.67,11.66301955]
[1724352563695,13.06,143.7,143.65,45.12549]
[1724352564083,13.06,143.7,143.66,7.64876028]
[1724352564382,13.06,143.7,143.67,4.01384542]
[1724352564605,13.06,143.7,143.65,45.12549]
[1724352564890,13.06,143.7,143.66,6.46692285]
[1724352565190,13.06,143.7,143.65,45.12549]
[1724352565386,13.06,143.7,143.66,6.46681224]
[1724352565587,13.06,143.7,143.65,45.12549]
[1724352565794,13.06,143.7,143.66,6.46680875]
[1724352565992,13.06,143.68,143.64,20.0]
[1724352566181,13.06,143.68,143.65,6.46835118]
[1724352566381,13.06,143.68,143.63,11.24078001]
[1724352566581,13.06,143.68,143.64,65.0]
[1724352566796,13.06,143.68,143.64,45.0]
[1724352566995,13.06,143.68,143.63,45.0]
[1724352567176,13.06,143.68,143.64,20.0]
[1724352568398,20.019,143.7,143.64,20.0]
[1724352568976,13.06,143.68,143.64,20.0]
[1724352569381,13.06,143.68,143.63,45.0]
[1724352569600,1.74011274,143.69,143.62,45.12549]
[1724352569601,13.06,143.66,143.62,45.12549]
[1724352569808,1.74021801,143.67,143.62,45.12549]
[1724352569809,17.43671801,143.67,143.62,0.12549]
[1724352570011,26.12,143.64,143.57,26.83642228]
[1724352570219,21.9176,143.63,143.55,275.2]
[1724352570502,21.9176,143.63,143.53,20.0]
[1724352570503,30.62050876,143.63,143.53,20.0]
[1724352570700,30.62050876,143.63,143.5,35.6694]
[1724352570906,16.0494,143.61,143.52,27.27735565]
[1724352571279,16.0494,143.61,143.53,7.05851975]
[1724352571784,16.0494,143.61,143.54,13.06]
[1724352571986,16.0494,143.61,143.54,40.11851975]
[1724352572192,16.0494,143.61,143.55,52.30949975]
[1724352572705,16.0494,143.61,143.55,45.25098]
[1724352573216,16.0494,143.61,143.56,20.0]
[1724352573382,16.0494,143.61,143.57,45.12549]
[1724352574018,14.80090878,143.6,143.52,20.0]
[1724352574180,13.06,143.6,143.52,20.0]
[1724352575202,13.06,143.6,143.53,65.0]
[1724352575413,13.06,143.6,143.54,0.25098]
[1724352577087,16.0494,143.61,143.54,0.25098]
[1724352577410,16.0494,143.61,143.56,33.06]
[1724352577589,16.0494,143.61,143.57,45.25098]
[1724352578715,16.0494,143.61,143.57,45.12549]
[1724352581609,16.0494,143.61,143.57,45.05560147]
[1724352584523,16.0494,143.61,143.57,44.93011147]
[1724352601106,6.2211,143.63,143.58,0.25098]
[1724352601511,19.2811,143.63,143.57,44.93011147]
[1724352602510,26.2434,143.63,143.57,44.93011147]
[1724352603729,13.06,143.59,143.53,20.0]
[1724352603943,13.06,143.59,143.5,26.5683]
[1724352603944,13.06,143.58,143.52,20.0]
[1724352604149,13.06,143.58,143.51,20.0]
[1724352604635,19.4745,143.58,143.5,27.27382416]
[1724352606217,19.4745,143.58,143.51,20.0]
[1724352606731,19.4745,143.58,143.52,45.0]
[1724352607328,19.4745,143.58,143.53,20.0]
[1724352608236,19.4745,143.58,143.52,45.0]
[1724352608437,13.06,143.56,143.46,20.0]
[1724352608740,13.06,143.56,143.48,20.0]
[1724352609042,13.06,143.56,143.48,33.06]
[1724352609241,15.9421,143.57,143.5,13.06]
[1724352609541,15.9421,143.57,143.51,0.62308303]
[1724352609767,15.9421,143.57,143.51,65.25098]
[1724352612451,15.9421,143.57,143.52,13.06]
[1724352612769,15.9421,143.57,143.53,65.25098]
[1724352612941,15.9421,143.57,143.54,0.99409935]
[1724352613370,15.9421,143.57,143.53,65.25098]
[1724352613759,15.9421,143.57,143.54,0.99409933]
[1724352613973,15.9421,143.57,143.53,65.25098]
[1724352614669,6.4145,143.58,143.54,13.06]
[1724352614966,15.529,143.6,143.55,46.24631551]
[1724352615849,15.529,143.6,143.56,33.06]
[1724352616069,15.529,143.6,143.57,45.0]
[1724352618376,15.529,143.6,143.58,1.39272714]
[1724352618864,6.5432,143.63,143.57,45.0]
[1724352619170,6.5432,143.63,143.58,0.12549]
[1724352620481,6.5432,143.63,143.58,14.57809752]
[1724352620650,6.5432,143.63,143.59,45.0]
[1724352621188,6.5432,143.63,143.6,0.12549]
[1724352622553,13.06,143.62,143.59,45.0]
[1724352622756,13.06,143.62,143.56,20.0]
[1724352622968,13.06,143.62,143.53,20.0]
[1724352623169,13.06,143.62,143.53,40.0]
[1724352623554,1.74094564,143.61,143.53,40.0]
[1724352623769,13.06,143.62,143.53,40.0]
[1724352623976,13.06,143.62,143.54,13.06]
[1724352624177,13.06,143.62,143.55,20.0]
[1724352624757,13.06,143.62,143.56,45.0]
[1724352624957,13.06,143.62,143.57,0.12549]
[1724352625463,6.5432,143.63,143.57,0.12549]
[1724352625668,6.5432,143.63,143.57,0.25098]
[1724352631476,19.6032,143.63,143.57,0.25098]
[1724352633462,13.06,143.59,143.55,20.0]
[1724352633685,13.06,143.57,143.54,24.0271967]
[1724352633877,13.06,143.57,143.51,26.49099206]
[1724352634072,13.06,143.57,143.52,4.02843948]
[1724352634268,14.80151052,143.57,143.5,4.02843948]
[1724352634478,13.06,143.55,143.49,11.30109175]
[1724352634702,8.70694076,143.57,143.49,11.30109175]
[1724352634888,8.70694076,143.57,143.49,7.26949637]
[1724352634889,28.2887,143.53,143.49,7.26949637]
[1724352636092,28.2887,143.53,143.5,45.0]
[1724352638111,15.2287,143.53,143.5,45.0]
[1724352643516,15.2287,143.53,143.49,45.0]
[1724352643710,15.2287,143.53,143.5,20.12549]
[1724352646696,15.8329,143.56,143.51,46.39337638]
[1724352646895,15.8329,143.56,143.52,0.12549]
[1724352647107,15.8329,143.56,143.52,1.5186988]
[1724352647796,15.8329,143.56,143.52,0.12549]
[1724352647986,15.8329,143.56,143.52,1.51826432]
[1724352648189,15.8329,143.56,143.53,0.12549]
[1724352648422,6.4494,143.58,143.53,45.12549]
[1724352648602,6.4494,143.58,143.54,0.12549]
[1724352652732,15.148,143.59,143.54,21.51736934]
[1724352652899,15.148,143.59,143.55,45.12549]
[1724352653100,15.148,143.59,143.56,1.51717543]
[1724352653294,15.148,143.59,143.56,0.12549]
[1724352653609,15.148,143.59,143.55,45.12549]
[1724352654125,15.148,143.59,143.55,45.0]
[1724352656216,35.1101,143.62,143.55,45.0]
[1724352657131,35.1101,143.62,143.56,0.12549]
[1724352659115,13.06,143.6,143.54,20.0]
[1724352659317,13.06,143.6,143.51,43.58680037]
[1724352659516,13.06,143.6,143.52,24.03125844]
[1724352659839,35.1101,143.62,143.54,20.0]
[1724352660414,35.1101,143.62,143.55,45.25098]
[1724352662348,35.1101,143.62,143.55,45.12549]
[1724352662548,13.06,143.6,143.55,0.12549]
[1724352662724,13.06,143.6,143.55,20.12549]
[1724352664217,13.06,143.6,143.54,45.0]
[1724352664417,14.80125884,143.6,143.54,45.0]
[1724352664645,13.06,143.6,143.54,45.0]
[1724352664823,13.06,143.6,143.53,45.12549]
[1724352665027,13.06,143.6,143.54,20.12549]
[1724352665332,13.06,143.6,143.55,45.0]
[1724352668123,29.013,143.62,143.54,20.0]
[1724352668124,13.06,143.58,143.54,20.0]
[1724352668325,13.06,143.58,143.51,4.03201576]
[1724352668645,1.74150792,143.57,143.52,1.74380092]
[1724352668844,16.4213,143.58,143.51,1.74380092]
[1724352669043,13.06,143.56,143.51,1.74380092]
[1724352669428,29.4813,143.58,143.51,1.74380092]
[1724352669633,29.4813,143.58,143.51,5.77581668]
[1724352669835,29.4813,143.58,143.52,20.0]
[1724352670037,29.4813,143.58,143.51,25.77581668]
[1724352670238,29.4813,143.58,143.52,1.74380092]
[1724352670453,29.4813,143.58,143.52,45.0]
[1724352670625,29.4813,143.58,143.52,46.74387464]
[1724352670829,29.4813,143.58,143.52,45.0]
[1724352673456,29.4813,143.58,143.53,1.74379618]
[1724352673930,29.4813,143.58,143.52,45.0]
[1724352676445,29.4813,143.58,143.51,20.12549]
[1724352676644,29.4813,143.58,143.51,0.12549]
[1724352676949,13.06,143.56,143.51,45.12549]
[1724352679958,1.74163889,143.55,143.51,45.0]
[1724352680531,1.74163889,143.55,143.5,20.0]
[1724352680728,31.31114042,143.54,143.48,26.5009718]
[1724352681037,13.06,143.52,143.48,20.0]
[1724352681260,1.74208101,143.53,143.46,26.5009718]
[1724352681452,13.06,143.51,143.46,20.0]
[1724352681658,13.06,143.51,143.44,7.2481171]
[1724352681960,13.06,143.51,143.45,6.50274255]
[1724352682125,13.06,143.51,143.46,6.50274255]
[1724352682331,13.06,143.51,143.45,6.50274255]
[1724352682643,13.06,143.51,143.46,6.50274255]
[1724352682842,13.06,143.51,143.45,6.50274255]
[1724352683155,19.0673,143.53,143.46,26.50274255]
[1724352683334,6.0073,143.53,143.46,46.50274255]
[1724352683525,6.0073,143.53,143.47,64.68823255]
[1724352683730,6.0073,143.53,143.48,26.50274255]
[1724352683929,6.0073,143.53,143.49,45.12549]
[1724352684162,6.0073,143.53,143.49,45.0]
[1724352684963,16.5093,143.54,143.49,45.0]
[1724352690965,13.06,143.53,143.49,45.0]
[1724352691165,13.06,143.53,143.48,20.0]
[1724352691386,14.80203184,143.53,143.47,0.12549]
[1724352691689,14.80203184,143.53,143.47,45.0]
[1724352691884,14.80203184,143.53,143.48,20.0]
[1724352692190,13.06,143.51,143.48,20.0]
[1724352692693,6.2386,143.52,143.48,20.0]
[1724352693564,6.2386,143.52,143.47,45.0]
[1724352693888,6.2386,143.52,143.44,7.2481171]
[1724352694074,6.2386,143.52,143.45,20.0]
[1724352694273,13.06,143.51,143.45,20.0]
[1724352694901,13.06,143.51,143.44,26.50264321]
[1724352695097,13.06,143.51,143.45,0.12549]
[1724352695296,13.06,143.51,143.45,45.25098]
[1724352695603,13.06,143.51,143.46,20.0]
[1724352695768,19.2986,143.52,143.47,45.0]
[1724352696269,19.2986,143.52,143.46,20.0]
[1724352696593,19.2986,143.52,143.45,20.25098]
[1724352696776,19.2986,143.52,143.46,45.0]
[1724352696978,19.2986,143.52,143.47,20.12549]
[1724352697370,19.2986,143.52,143.47,20.0]
[1724352706999,6.2386,143.52,143.47,20.0]
[1724352709614,16.5093,143.54,143.48,45.25098]
[1724352709913,16.5093,143.54,143.48,58.31098]
[1724352711285,16.5093,143.54,143.48,45.25098]
[1724352711486,16.5093,143.54,143.48,45.12549]
[1724352713603,16.5093,143.54,143.49,0.12549]
[1724352714789,16.5093,143.54,143.48,45.12549]
[1724352715899,29.5693,143.54,143.48,45.0]
[1724352716120,29.5693,143.54,143.47,20.0]
[1724352716720,29.5693,143.54,143.48,45.0]
[1724352725137,31.31134946,143.54,143.48,45.0]
[1724352728314,1.74207324,143.53,143.48,45.0]
[1724352728515,1.74207324,143.53,143.47,20.0]
[1724352728714,1.74207324,143.53,143.48,20.0]
[1724352728930,1.74207324,143.53,143.46,20.12549]
[1724352729129,1.74207324,143.53,143.47,45.12549]
[1724352729315,1.74207324,143.53,143.48,20.0]
[1724352729516,13.06,143.52,143.48,20.0]
[1724352729730,13.06,143.52,143.44,7.24400155]
[1724352729731,1.74218759,143.51,143.44,7.24400155]
[1724352729943,1.74218759,143.51,143.45,65.25098]
[1724352730135,14.80218759,143.51,143.45,65.25098]
[1724352730336,14.80218759,143.51,143.45,20.0]
[1724352730537,15.155,143.5,143.45,20.0]
[1724352731734,15.155,143.5,143.46,45.0]
[1724352731940,15.155,143.5,143.47,20.0]
[1724352735448,1.74241662,143.49,143.43,0.3124882]
[1724352736842,1.74241662,143.49,143.43,65.3124882]
[1724352737015,1.74241662,143.49,143.44,1.74470157]
[1724352737219,1.74241662,143.49,143.45,1.74470157]
[1724352737547,1.74241662,143.49,143.46,1.74470157]
[1724352737745,1.74241662,143.49,143.47,1.74470157]
[1724352737937,1.74241662,143.49,143.48,1.74470157]
[1724352742249,28.215,143.5,143.46,4.04022052]
[1724352742557,28.215,143.5,143.47,5.78493107]
[1724352742731,28.215,143.5,143.43,65.3124882]
[1724352742934,28.215,143.5,143.44,5.78445573]
[1724352743135,28.215,143.5,143.45,25.78445573]
[1724352743340,28.215,143.5,143.46,5.78445573]
[1724352743529,28.215,143.5,143.47,5.78445573]
[1724352743729,28.215,143.5,143.45,20.0]
[1724352743943,28.215,143.5,143.46,5.78264604]
[1724352744223,28.215,143.5,143.47,1.7447108]
[1724352744427,28.215,143.5,143.44,20.0]
[1724352744624,28.215,143.5,143.45,5.78230062]
[1724352744817,28.215,143.5,143.46,5.78230062]
[1724352745017,28.215,143.5,143.47,5.78230062]
[1724352745227,28.215,143.5,143.44,20.0]
[1724352745445,28.215,143.5,143.45,5.78245673]
[1724352745622,28.215,143.5,143.46,5.78245673]
[1724352745822,28.215,143.5,143.44,20.0]
[1724352746063,28.215,143.5,143.47,1.74470073]
[1724352746249,28.215,143.5,143.45,1.74470073]
[1724352746429,15.155,143.5,143.46,1.7447108]
[1724352746630,15.155,143.5,143.47,1.7447108]
[1724352746928,15.155,143.5,143.44,20.0]
[1724352747125,15.155,143.5,143.45,1.74470124]
[1724352747326,15.155,143.5,143.46,1.74470124]
[1724352747533,15.155,143.5,143.47,1.74470124]
[1724352747742,15.155,143.5,143.44,20.0]
[1724352751242,15.155,143.5,143.45,45.0]
[1724352751436,15.155,143.5,143.45,58.06]
[1724352751630,6.3062,143.52,143.47,13.06]
[1724352752044,16.0794,143.54,143.48,45.0]
[1724352769978,15.0872,143.58,143.51,13.06]
[1724352770362,15.0872,143.58,143.53,13.06]
[1724352771196,6.9629,143.62,143.53,13.06]
[1724352771197,22.0501,143.62,143.53,13.06]
[1724352776501,13.06,143.61,143.52,0.12549]
[1724352776704,20.0234,143.61,143.52,13.18549]
[1724352776904,20.0234,143.61,143.53,65.0]
[1724352778806,1.74143593,143.6,143.53,65.0]
[1724352779003,13.06,143.59,143.53,20.0]
[1724352779188,13.06,143.59,143.52,20.12549]
[1724352779389,1.74148686,143.58,143.52,20.12549]
[1724352781215,1.74148686,143.58,143.53,20.0]
[1724352782011,1.74148547,143.57,143.5,20.0]
[1724352782315,13.06,143.55,143.48,15.8819]
[1724352782501,1.74204035,143.54,143.48,15.8819]
[1724352782695,1.74204035,143.54,143.46,20.3137602]
[1724352783108,13.06,143.53,143.45,15.3119]
[1724352783292,13.06,143.53,143.45,28.3719]
[1724352784209,1.74204636,143.59,143.48,20.0]
[1724352784532,42.2918,143.6,143.51,13.06]
[1724352784715,42.2918,143.6,143.52,45.0]
[1724352785815,13.06,143.58,143.49,6.32279]
[1724352785996,13.06,143.58,143.5,78.06]
[1724352787499,42.2914,143.6,143.51,0.25098]
[1724352787902,42.2914,143.6,143.51,1.64420688]
[1724352788219,42.2914,143.6,143.51,0.25098]
[1724352792010,29.2314,143.6,143.51,0.25098]
[1724352792213,42.2914,143.6,143.51,0.25098]
[1724352792525,42.2914,143.6,143.52,13.06]
[1724352793603,6.9643,143.59,143.5,78.06]
[1724352793810,13.06,143.58,143.5,78.06]
[1724352795235,35.3276,143.6,143.52,13.06]
[1724352796195,35.3276,143.6,143.53,45.0]
[1724352797506,35.3276,143.6,143.53,45.72202619]
[1724352798329,35.3276,143.6,143.53,45.0]
[1724352798517,42.2914,143.6,143.53,45.0]
[1724352798705,6.9643,143.59,143.5,33.06]
[1724352798906,13.06,143.58,143.5,33.06]
[1724352799129,1.74170927,143.57,143.5,33.06]
[1724352799325,1.74170927,143.57,143.5,20.0]
[1724352799627,1.74170927,143.57,143.48,13.06]
[1724352799803,1.74170927,143.57,143.49,20.0]
[1724352801145,16.2171,143.55,143.49,20.0]
[1724352802406,14.801926,143.54,143.46,7.24872927]
[1724352803833,13.06,143.54,143.47,45.12549]
[1724352804024,13.06,143.54,143.48,20.0]
[1724352805730,22.538,143.55,143.49,45.0]
[1724352809037,14.80193476,143.54,143.48,20.0]
[1724352809237,13.06,143.52,143.48,4.04124577]
[1724352809542,13.06,143.52,143.47,4.04124577]
[1724352809842,13.06,143.52,143.47,4.04236621]
[1724352810042,1.74233919,143.51,143.46,4.04236621]
[1724352810226,1.74233919,143.51,143.43,13.3724882]
[1724352810745,13.06,143.5,143.43,13.3724882]
[1724352811050,16.3835,143.49,143.43,13.3724882]
[1724352811627,16.3835,143.49,143.44,20.0]
[1724352812026,14.80251442,143.48,143.44,20.0]
[1724352812226,14.80251442,143.48,143.43,0.3124882]
[1724352812830,13.06,143.48,143.43,0.3124882]
[1724352813032,16.3835,143.49,143.43,0.3124882]
[1724352813325,1.74274165,143.48,143.43,0.3124882]
[1724352814028,14.80274165,143.48,143.43,0.3124882]
[1724352814229,14.80274165,143.48,143.43,20.3124882]
[1724352814750,16.3835,143.49,143.43,20.3124882]
[1724352815052,1.74275311,143.48,143.43,20.3124882]
[1724352815241,14.80275311,143.48,143.43,0.3124882]
[1724352816736,13.06,143.48,143.43,0.3124882]
[1724352818447,13.06,143.46,143.43,0.3124882]
[1724352818757,1.74309013,143.45,143.43,0.3124882]
[1724352819325,22.4541,143.44,143.43,0.3124882]
[1724352829057,29.4256,143.44,143.43,0.3124882]
[1724352832029,29.55109,143.44,143.43,0.3124882]
[1724352832255,29.67658,143.44,143.43,0.3124882]
[1724352833640,30.88602711,143.44,143.43,0.3124882]
[1724352833840,23.66354711,143.44,143.43,0.3124882]
[1724352835792,30.63504711,143.44,143.43,0.3124882]
[1724352836085,29.4256,143.44,143.43,0.3124882]
[1724352838396,29.67658,143.44,143.43,0.3124882]
[1724352839668,42.73658,143.44,143.43,0.3124882]
[1724352841098,42.4856,143.44,143.43,0.3124882]
[1724352842567,29.4256,143.44,143.43,0.3124882]
[1724352842896,15.9099,143.44,143.43,0.3124882]
[1724352843099,20.0309,143.46,143.43,0.3124882]
[1724352844295,21.3705,143.48,143.43,0.3124882]
[1724352844479,28.3402,143.48,143.43,0.3124882]
[1724352844692,21.3705,143.48,143.43,0.3124882]
[1724352845775,15.1035,143.48,143.43,0.3124882]
[1724352846474,13.06,143.49,143.43,0.3124882]
[1724352846673,20.0291,143.49,143.43,0.3124882]
[1724352846896,13.06,143.49,143.43,0.3124882]
[1724352847993,42.95132752,143.51,143.43,0.3124882]
[1724352848171,41.741,143.51,143.43,0.3124882]
[1724352848791,13.06,143.49,143.43,0.3124882]
[1724352849708,1.74290465,143.48,143.43,0.3124882]
[1724352850075,20.0291,143.49,143.43,0.3124882]
[1724352850575,1.74288515,143.48,143.43,0.3124882]
[1724352851176,13.06,143.49,143.43,0.3124882]
[1724352854099,1.74285096,143.48,143.43,0.3124882]
[1724352854283,6.9696,143.48,143.43,0.3124882]
[1724352854700,20.0293,143.49,143.43,0.3124882]
[1724352855199,1.74300322,143.48,143.43,0.3124882]
[1724352855571,20.0293,143.49,143.43,0.3124882]
[1724352857803,6.9697,143.48,143.43,0.3124882]
[1724352858877,13.06,143.47,143.43,0.3124882]
[1724352859406,1.86848404,143.5,143.43,0.3124882]
[1724352859407,13.06,143.45,143.43,0.3124882]
[1724352859606,1.74334775,143.44,143.43,0.3124882]
[1724352860699,6.9707,143.46,143.43,0.3124882]
[1724352860920,1.74330538,143.45,143.43,0.3124882]
[1724352862625,20.0307,143.46,143.43,0.3124882]
[1724352864793,20.0315,143.44,143.43,0.3124882]
[1724352868737,21.49354835,143.44,143.43,0.3124882]
[1724352870191,6.9728,143.42,143.35,15.9108]
[1724352870418,13.06,143.4,143.35,15.9108]
[1724352870624,1.74375021,143.39,143.35,15.9108]
[1724352873430,1.74374593,143.41,143.35,15.9108]
[1724352875545,13.06,143.4,143.35,15.9108]
[1724352876624,14.80391736,143.4,143.35,15.9108]
[1724352876830,13.06,143.4,143.35,15.9108]
[1724352877213,13.06,143.38,143.33,6.3127]
[1724352877413,1.74403299,143.37,143.33,6.3127]
[1724352878310,1.74403299,143.37,143.32,15.3381]
[1724352878524,1.74403299,143.37,143.33,20.0]
[1724352878816,13.06,143.36,143.32,15.3381]
[1724352879126,1.74429012,143.35,143.32,15.3381]
[1724352879935,13.06,143.36,143.32,15.3381]
[1724352880147,20.0344,143.38,143.32,15.3381]
[1724352881837,13.06,143.38,143.32,15.3381]
[1724352882142,13.06,143.4,143.32,28.3981]
[1724352882835,20.0335,143.4,143.32,28.3981]
[1724352885314,3.20611684,143.44,143.33,22.813]
[1724352885315,2.95513709,143.44,143.33,22.813]
[1724352885520,13.06,143.4,143.33,22.813]
[1724352885920,20.0336,143.4,143.33,22.813]
[1724352886431,13.06,143.4,143.33,22.813]
[1724352886731,20.0327,143.42,143.33,22.813]
[1724352888249,13.06,143.42,143.33,22.813]
[1724352888451,20.0325,143.42,143.33,22.813]
[1724352888748,13.06,143.4,143.33,22.813]
[1724352889925,13.06,143.38,143.33,22.813]
[1724352890242,13.06,143.36,143.29,23.0650949]
[1724352890445,1.74432062,143.35,143.29,23.0650949]
[1724352891336,13.06,143.34,143.3,20.0]
[1724352892718,13.06,143.34,143.29,16.9336949]
[1724352894151,13.06,143.34,143.29,16.4336949]
[1724352895370,13.06,143.36,143.29,16.4336949]
[1724352902161,13.06,143.36,143.29,29.4936949]
[1724352902372,20.0346,143.38,143.29,29.4936949]
[1724352902764,15.5315,143.39,143.31,13.06]
[1724352902952,6.3209,143.41,143.33,13.06]
[1724352903265,22.84,143.42,143.33,13.06]
[1724352903266,15.8674,143.42,143.33,13.06]
[1724352903560,22.8401,143.42,143.33,13.06]
[1724352903735,15.8674,143.42,143.34,45.0]
[1724352904367,13.06,143.41,143.33,13.06]
[1724352904866,13.06,143.36,143.29,16.4336949]
[1724352905172,1.74433774,143.35,143.3,20.0]
[1724352905371,13.06,143.34,143.29,16.4336949]
[1724352906038,13.06,143.36,143.29,16.4336949]
[1724352906442,6.9751,143.37,143.29,16.4336949]
[1724352906852,32.76,143.38,143.29,16.4336949]
[1724352907168,6.9746,143.38,143.3,45.0]
[1724352908253,8.18522819,143.38,143.3,45.0]
[1724352908745,1.74411883,143.37,143.3,45.0]
[1724352909065,9.92938741,143.38,143.3,45.0]
[1724352909256,40.94522819,143.38,143.29,16.4336949]
[1724352909445,1.74416307,143.37,143.3,20.0]
[1724352909649,8.71916307,143.37,143.3,20.0]
[1724352909854,39.7364,143.34,143.29,0.3436949]
[1724352910176,1.74479484,143.33,143.29,0.3436949]
[1724352910355,1.74479483,143.32,143.29,0.3436949]
[1724352911071,2.76422787,143.31,143.29,0.3436949]
[1724352911264,1.74479778,143.3,143.29,0.3436949]
[1724352911972,1.74483916,143.33,143.29,0.3436949]
[1724352912177,4.50906603,143.32,143.29,0.3436949]
[1724352912350,1.74483881,143.32,143.29,0.3436949]
[1724352913059,34.50483881,143.32,143.29,0.3436949]
[1724352913263,2.7642466,143.31,143.29,0.3436949]
[1724352913466,1.7449493,143.3,143.25,14.8710949]
[1724352914351,6.9769,143.33,143.25,14.8710949]
[1724352914553,2.76661269,143.32,143.25,14.8710949]
[1724352914772,2.76661269,143.31,143.25,14.8710949]
[1724352914966,6.9769,143.33,143.25,14.8710949]
[1724352915166,2.76638262,143.32,143.25,14.8710949]
[1724352915478,2.76638262,143.31,143.25,14.8710949]
[1724352915679,26.976,143.35,143.25,14.8710949]
[1724352916173,2.76634151,143.34,143.25,14.8710949]
[1724352916358,2.76634151,143.33,143.25,14.8710949]
[1724352917268,6.9765,143.34,143.25,14.8710949]
[1724352917985,20.0,143.35,143.26,45.0]
[1724352918275,23.6242,143.36,143.26,77.76]
[1724352918774,56.3842,143.36,143.26,77.76]
[1724352919452,1.7445253,143.35,143.26,77.76]
[1724352919869,56.3842,143.36,143.26,77.76]
[1724352920259,49.4087,143.36,143.26,77.76]
[1724352920596,16.6487,143.36,143.27,0.25098]
[1724352920748,32.76,143.32,143.25,14.8710949]
[1724352920950,1.74494298,143.31,143.25,14.8710949]
[1724352922760,1.74505417,143.31,143.25,13.8710949]
[1724352923279,39.7375,143.32,143.25,13.8710949]
[1724352923482,41.48250404,143.32,143.25,13.8710949]